[Event "Turkish Youth Championships 2023"]
[Site "Samsun"]
[Date "2023.05.21"]
[Round "4.3"]
[White "Tarlabasi, Emirhan"]
[Black "Coskun, Emre"]
[Result "1/2-1/2"]
[WhiteElo "2300"]
[BlackElo "1750"]
[Annotator "TA"]
[PlyCount "202"]
[EventDate "2023.05.19"]
[EventType "swiss"]
[EventCountry "TUR"]
[TimeControl "5400+30"]

{[%evp 9,202,7,25,-10,-4,-24,-9,-73,-47,-52,-53,-45,-50,-79,-75,-88,-74,-104,-85,-108,-95,-148,-67,-67,-66,-88,-94,-93,-84,-95,-68,-125,-85,-78,-66,-96,-94,-94,-67,-83,-52,-84,-77,-57,0,-100,-64,-91,0,0,0,0,0,0,0,-77,0,-171,-175,-220,-183,-242,-77,-252,-250,-248,-230,-237,-101,-101,-101,-101,-101,-101,-20,-39,-22,-37,0,-272,-237,-225,0,0,0,0,0,0,0,0,0,0,0,0,0,0,0,-120,0,0,0,0,0,0,0,0,22,13,43,34,58,58,107,107,160,58,58,58,58,58,58,58,58,58,58,58,58,58,58,58,58,58,58,58,58,58,174,171,147,128,146,67,106,0,0,0,0,0,0,0,0,0,0,0,0,0,0,0,0,0,0,0,0,0,0,0,0,0,0,0,0,0,0,0,0,0,0,0,0,0,0,0,0,0,0,0,0,0,0,0,0,0,0,0,0]} 1. d4 {[%emt 0:06:00]} Nf6 {[%emt 0:01:00]} 2. Nf3 {[%emt 0:01:30]} e6 {[%emt 0:01:30]} 3. c4 {[%emt 0:02:30]} b6 {[%emt 0:00:30]} 4. Nc3 {[%emt 0:00:30]} Bb7 {[%emt 0:01:30]} 5. a3 {[%emt 0:06:30]} Ne4 {[%emt 0:03:30]} 6. Qd3 {[%emt 0:11:30] E12: Queen's Indian: Unusual White 4th moves, 4 a3, 4 Nc3 Bb7 5 a3 and 4 Nc3 Bb7 .} Nxc3 {[%emt 0:05:30] [#]} 7. bxc3 $146 {[%emt 0:01:30]} ({Predecessor:} 7. Qxc3 Be7 8. e3 O-O 9. Bd3 f5 10. Qc2 Qe8 11. Rg1 c5 12. Bd2 cxd4 13. Nxd4 Nc6 14. Nxc6 Bxc6 {½-½ Smolik,J (2218)-Fedorov,E (2234) CZE-chT1W 2122 2021 (4.6)}) 7... Be7 {[%emt 0:00:30]} 8. g3 {[%emt 0:00:30]} (8. e4 $11) 8... O-O {[%emt 0:06:30]} 9. Bg2 {[%emt 0:00:00][%cal Of3g5]} f5 {[%emt 0:00:30]} 10. O-O {[%emt 0:06:00]} Be4 {[%emt 0:00:30]} 11. Qd2 {[%emt 0:01:30]} Nc6 {[%emt 0:01:30]} 12. Qa2 {[%emt 0:07:30]} Na5 {[%emt 0:06:30]} 13. d5 {[%emt 0:10:30]} Qc8 {[%emt 0:01:30]} 14. Rd1 {[%emt 0:11:30]} Bc5 {[%emt 0:19:30]} 15. Bf1 {[%emt 0:03:30]} (15. dxe6 $142 dxe6 16. Bf4) 15... Bxf3 {[%emt 0:05:30]} (15... Qe8 $1 $17 {And now ...e5 would win.} 16. h3 h6) 16. exf3 $15 {[%emt 0:04:30]} e5 {[%emt 0:00:30]} 17. Be3 {[%emt 0:02:30]} Nb7 {[%emt 0:01:30]} 18. Re1 {[%emt 0:00:30]} d6 {[%emt 0:00:30]} 19. Qc2 {[%emt 0:01:36]} Qd7 {[%emt 0:02:30]} 20. Ra2 {[%emt 0:16:02]} (20. Bd2 $15) 20... h6 {[%emt 0:03:30]} 21. Bc1 {[%emt 0:00:30]} Kh8 {[%emt 0:04:30]} 22. Qb1 {[%emt 0:02:10]} g5 {[%emt 0:03:30]} 23. Bd3 {[%emt 0:02:38]} Qf7 {[%emt 0:00:30]} 24. Qc2 {[%emt 0:00:30]} Rae8 {[%emt 0:07:30]} 25. a4 {[%emt 0:00:30]} Qg6 {[%emt 0:06:20][%cal Oe5e4]} 26. Qd1 {[%emt 0:00:32]} Qh5 {[%emt 0:03:48]} (26... Qf6 $15) 27. Rf1 {[%emt 0:00:31]} (27. Bxf5 $1 $11 Rxf5 28. g4) 27... Qh3 {[%emt 0:01:24]} (27... e4 {simplifies} 28. fxe4 Qxd1 29. Rxd1 fxe4 30. Bf1 e3) 28. Re1 {[%emt 0:00:29]} Qh5 {[%emt 0:01:03]} (28... f4 $17 29. Kh1 Na5) 29. Bxf5 {[%emt 0:00:26][%mdl 64] Remove Defender, Decoy} Rxf5 {[%emt 0:01:20]} 30. g4 {[%emt 0:00:30]} Qh3 {[%emt 0:00:00]} (30... Bxf2+ $2 31. Rxf2 Qh3 32. gxf5 $18) 31. gxf5 {[%emt 0:00:07]} Rf8 $1 {[%emt 0:00:00]} 32. Be3 {[%emt 0:00:36]} (32. Kh1 $11) 32... Rxf5 {[%emt 0:00:02]} (32... a5 $1 $17) 33. Bxc5 $2 {[%emt 0:00:39]} (33. a5 $1 $11 {and White has nothing to worry.}) 33... Nxc5 $19 {[%emt 0:00:30]} 34. Re3 {[%emt 0:00:30][%cal Of3f4]} Rf4 {[%emt 0:01:20]} 35. Qf1 {[%emt 0:00:00]} (35. Qc2 {is a better defense.}) 35... Qxf1+ {[%emt 0:00:30]} 36. Kxf1 {[%emt 0:00:00][%mdl 4096] Endgame KRR-KRN} a5 {[%emt 0:00:30]} 37. Ra3 {[%emt 0:00:00]} Rxc4 {[%emt 0:00:00]} 38. Kg2 {[%emt 0:02:11]} Rxa4 {[%emt 0:01:20]} (38... Nxa4 39. Re4 Rxe4 40. fxe4 $11) (38... Kh7 $19 {Strongly threatening ...Kg6.} 39. Re1 Kg6) 39. Rxa4 $17 {[%emt 0:00:31]} Nxa4 $19 {[%emt 0:00:01] KR-KN} 40. c4 {[%emt 0:00:10][%cal Oh2h4]} Kg7 {[%emt 0:00:24]} 41. Ra3 {[%emt 0:01:22]} Nc5 {[%emt 0:00:17]} (41... Nb2 $17 42. Rc3 Na4) 42. h4 $11 {[%emt 0:00:00]} Kg6 {[%emt 0:00:23]} 43. hxg5 {[%emt 0:00:29]} hxg5 {[%emt 0:00:30]} 44. Kh3 $2 {[%emt 0:00:30][%mdl 8192]} (44. Kg3 $11 {and White is okay.}) 44... Kf5 $1 $19 {[%emt 0:00:30]} 45. Kg3 {[%emt 0:00:03]} Kg6 $2 {[%emt 0:03:36]} (45... e4 $1 $19 46. Ra2 Ke5) 46. Kg4 {[%emt 0:00:31]} Nd7 {[%emt 0:01:50][%cal Oe5e4]} 47. Ra1 {[%emt 0:00:50]} Nf6+ {[%emt 0:00:41]} 48. Kg3 {[%emt 0:00:06]} Nh5+ {[%emt 0:00:28]} 49. Kg4 {[%emt 0:00:03]} Nf6+ {[%emt 0:03:32]} 50. Kg3 {[%emt 0:00:30]} Nh5+ {[%emt 0:00:07]} 51. Kg2 {[%emt 0:00:00]} Nf4+ {[%emt 0:01:06]} 52. Kh2 {[%emt 0:00:47]} Kf5 {[%emt 0:00:32] ...Nd3 would be deadly.} 53. Rh1 {[%emt 0:01:20] [#]} (53. Re1 $11 {keeps the balance.}) 53... Kg6 {[%emt 0:02:02]} (53... e4 $1 $17 {White must now prevent ...Nd3.} 54. Re1 exf3) 54. Kg3 {[%emt 0:00:26]} Nh5+ {[%emt 0:00:16]} 55. Kg2 {[%emt 0:01:01]} Nf4+ {[%emt 0:00:30]} 56. Kf1 {[%emt 0:00:00]} Kg7 {[%emt 0:00:01]} 57. Ke1 {[%emt 0:00:00]} Nd3+ {[%emt 0:00:31]} 58. Kd2 {[%emt 0:00:34]} Nf4 {[%emt 0:00:41]} (58... Nxf2 $2 59. Rh2 $18) 59. Ke3 {[%emt 0:00:45]} (59. Rh2 $5 {[%cal Rh2h1]}) 59... Ng6 {[%emt 0:00:28]} 60. Rh5 {[%emt 0:00:23]} Ne7 {[%emt 0:01:06]} (60... Nf4 $14 61. Rxg5+ Kf7) 61. Rxg5+ $16 {[%emt 0:00:30]} Kf7 {[%emt 0:00:30]} (61... Kf6 $142 62. Rh5 b5) 62. Ke4 {[%emt 0:00:30]} (62. f4 $16) 62... Ng6 $1 $14 {[%emt 0:00:30]} 63. Rh5 {[%emt 0:00:30] Rh7+ is the strong threat.} Ke7 {[%emt 0:01:10]} 64. Rh7+ {[%emt 0:01:07]} Kd8 {[%emt 0:00:33]} 65. Rg7 {[%emt 0:00:30]} Nf4 {[%emt 0:00:00]} 66. Rg8+ $1 {[%emt 0:00:15]} Kd7 {[%emt 0:00:00]} 67. Ke3 {[%emt 0:00:56]} Ke7 {[%emt 0:00:21]} 68. Kd2 {[%emt 0:00:30]} Kd7 {[%emt 0:00:08]} 69. Rh8 {[%emt 0:00:20]} Ke7 {[%emt 0:00:14]} 70. Kc2 {[%emt 0:00:33]} Ne2 {[%emt 0:00:11]} 71. Kb2 {[%emt 0:00:29]} Kd7 {[%emt 0:00:41]} 72. Ka3 {[%emt 0:00:26]} Ng1 {[%emt 0:01:11] [#]} (72... Ke7 $14) 73. f4 $1 $18 {[%emt 0:00:38][%mdl 512]} exf4 {[%emt 0:00:08]} 74. Rh7+ {[%emt 0:00:26]} Kd8 {[%emt 0:00:46]} 75. Ka4 {[%emt 0:00:30] White is more active.} ({White should play} 75. Rf7 $16) 75... Ne2 {[%emt 0:00:28]} 76. Kb5 {[%emt 0:00:29]} (76. Rh8+ $16 Ke7 77. Rh7+ Kd8 78. Rf7) 76... Nd4+ $11 {[%emt 0:01:15] The position is equal.} 77. Ka6 {[%emt 0:00:02]} a4 {[%emt 0:02:11]} 78. Kb7 {[%emt 0:00:23]} b5 {[%emt 0:00:18]} ({But not} 78... a3 79. Rxc7 (79. Rh8+ Kd7 $18) 79... b5 80. cxb5 Nxb5 81. Rc1 $18) 79. cxb5 {[%emt 0:01:16]} Nxb5 {[%emt 0:00:01]} (79... a3 $2 80. b6 cxb6 81. Kxb6 $18 (81. Rh8+ Ke7 $14)) 80. Rh4 {[%emt 0:00:15]} Nc3 {[%emt 0:00:32]} 81. Kc6 {[%emt 0:00:35]} a3 {[%emt 0:00:17]} 82. Rh8+ {[%emt 0:00:57]} (82. Rh7 $5 a2 $8 83. Rh8+ Ke7 84. Ra8 $11) 82... Ke7 {[%emt 0:00:07]} 83. Rh7+ {[%emt 0:00:03]} (83. Ra8 $5 a2 $8 84. Ra5 $11) 83... Kf6 {[%emt 0:00:23] aiming for ...a2.} 84. Rxc7 {[%emt 0:00:16]} a2 {[%emt 0:00:56]} 85. Ra7 {[%emt 0:00:03]} Ke5 {[%emt 0:00:00]} 86. Ra5 {[%emt 0:01:11]} f3 {[%emt 0:00:20]} 87. Kd7 {[%emt 0:00:28]} Nxd5 {[%emt 0:00:49]} 88. Rxa2 {[%emt 0:00:23]} Nb6+ {[%emt 0:01:45]} 89. Kc6 {[%emt 0:00:35]} Nc4 $1 {[%emt 0:00:15]} 90. Ra4 {[%emt 0:00:35]} d5 {[%emt 0:00:27]} 91. Ra1 {[%emt 0:00:44]} Nb2 {[%emt 0:00:30]} 92. Re1+ {[%emt 0:00:12]} Kd4 {[%emt 0:00:34]} 93. Re3 {[%emt 0:00:38]} Nc4 {[%emt 0:00:01]} 94. Re8 {[%emt 0:00:26]} (94. Rxf3 {is a self mate.} Ne5+ 95. Kc7 Nxf3 96. Kd6 Kc4 97. Ke6 d4 98. Kf5 Kd3 99. Ke6 Ke2 100. Kf7 d3 101. Ke8 d2 102. Kd8 d1=Q+ 103. Kc7 Qd5 104. Kb6 Qd6+ 105. Ka7 Ne5 106. f4 Nd7 107. Kb7 Nc5+ 108. Kc8 Qc6+ 109. Kd8 Qd7#) 94... Ne5+ {[%emt 0:00:25]} 95. Kb5 {[%emt 0:00:29]} Ng4 {[%emt 0:00:23]} 96. Rf8 {[%emt 0:00:47]} Ke4 {[%emt 0:00:12]} 97. Kc5 {[%emt 0:00:10]} Nxf2 {[%emt 0:00:17] Hoping for ...d4.} 98. Re8+ {[%emt 0:00:15]} Kd3 {[%emt 0:00:27]} 99. Kxd5 {[%emt 0:00:15]} Ng4 {[%emt 0:00:44]} 100. Rf8 {[%emt 0:00:30] Repels Nf6+} f2 {[%emt 0:00:02]} 101. Rxf2 {[%emt 0:00:22]} Nxf2 {[%emt 0:00:37] What a bad dream for Black.   Weighted Error Value: White=0.31/Black=0.25 (precise)} 1/2-1/2

[Event "Turkish Youth Championships 2023"]
[Site "Samsun"]
[Date "2023.05.22"]
[Round "4.3"]
[White "Temizer, Umut"]
[Black "Akbas, Umut Ata"]
[Result "0-1"]
[ECO "C77"]
[WhiteElo "1973"]
[BlackElo "2417"]
[Annotator "TA"]
[PlyCount "68"]
[EventDate "2023.05.19"]
[EventType "swiss"]
[EventCountry "TUR"]
[SourceTitle "playchess.com"]
[Source "ChessBase"]
[SourceQuality "1"]
[TimeControl "5400+30"]

{[%evp 14,67,-4,-14,-9,-42,-19,-23,-29,-58,-42,-54,-64,-75,-29,-59,-11,-10,-26,-29,-31,-39,-23,-33,-43,-30,22,-10,21,22,10,-399,-416,-616,-612,-593,-568,-725,-708,-915,-819,-811,-814,-1093,-1069,-1715,-1703,-2059,-958,-1685,-1631,-29986,-29987,-29985,-1332,-29999]} 1. e4 {[%emt 0:03:00]} e5 {[%emt 0:03:00]} 2. Nf3 {[%emt 0:01:30]} Nc6 {[%emt 0:00:30]} 3. Bb5 {[%emt 0:00:30]} a6 {[%emt 0:00:30]} 4. Ba4 {[%emt 0:00:30]} Nf6 {[%emt 0:00:30]} 5. Qe2 {[%emt 0:00:30]} b5 {[%emt 0:00:00]} 6. Bb3 {[%emt 0:00:30]} Bc5 {[%emt 0:00:00]} 7. d3 {[%emt 0:01:30]} O-O {[%emt 0:00:30]} 8. c3 {[%emt 0:04:30]} h6 {[%emt 0:07:30] C77: Ruy Lopez: 3...a6 4 Ba4 Nf6, unusual lines.} 9. h3 {[%emt 0:03:30]} d6 {[%emt 0:03:30]} 10. Nbd2 {[%emt 0:02:30] [#]} Ne7 $146 {[%emt 0:10:30] Black has an edge.} ({Predecessor:} 10... Be6 11. Nf1 Re8 12. g4 Nh7 13. Rg1 Bxb3 14. axb3 Ne7 15. Ng3 Ng6 16. g5 Nxg5 17. Nxg5 hxg5 {1-0 Mamedov,R (2646)-Wang,H (2722) Shusha Blitz 2022 (9)}) 11. d4 {[%emt 0:16:30]} exd4 {[%emt 0:00:30]} 12. cxd4 {[%emt 0:00:30]} Bb6 {[%emt 0:01:30]} 13. O-O {[%emt 0:02:30]} Ng6 {[%emt 0:02:30]} (13... Bb7 $17) 14. a4 {[%emt 0:05:30]} Bb7 {[%emt 0:03:30]} (14... Nf4 $15 {is more appropriate.} 15. Qe3 g5) 15. Re1 $11 {[%emt 0:07:30]} Qd7 {[%emt 0:09:30]} 16. Bc2 {[%emt 0:04:30]} Rae8 {[%emt 0:05:30]} 17. Qf1 {[%emt 0:04:30]} c5 {[%emt 0:05:30][%cal Bc7c5,Bc5c4,Bc4c3,Bc3d2][%mdl 32]} 18. axb5 {[%emt 0:05:30]} axb5 {[%emt 0:00:30]} (18... cxd4 $2 19. bxa6 Bc6 20. Nc4 $16) 19. b3 {[%emt 0:03:30]} Nf4 {[%emt 0:06:30]} ({Better is} 19... cxd4 20. Bd3 (20. Bb2 d5 $15) 20... b4) 20. Bb2 {[%emt 0:01:30]} Rc8 {[%emt 0:05:30]} (20... cxd4 $5 {[%cal Rd6d5]} 21. Bd3 b4 $11) 21. d5 {[%emt 0:02:30] Black must now prevent Bxf6.} N6h5 {[%emt 0:09:30][%cal Of7f5]} 22. Nh4 $2 {[%emt 0:06:30][%mdl 8192] [#] This costs White the game.} (22. Kh2 $11 {and White is okay.}) 22... c4 $1 $19 {[%emt 0:00:30]} 23. Re3 {[%emt 0:02:40]} ({Not} 23. bxc4 Ng3 24. Nf5 Nxf1 $19) (23. Nxc4 $142 Rxc4 24. bxc4) 23... Bxe3 {[%emt 0:04:30]} 24. fxe3 {[%emt 0:00:20]} c3 {[%emt 0:00:44]} 25. Ba3 {[%emt 0:00:30]} Ng3 {[%emt 0:02:32]} 26. Qf3 {[%emt 0:00:30]} cxd2 {[%emt 0:02:01]} 27. Bd1 {[%emt 0:00:30] Inhibits Nfe2+.} Nfh5 {[%emt 0:00:00]} 28. Bb4 {[%emt 0:02:07]} Qe7 {[%emt 0:01:57][%csl LRe4,LRh4]} 29. Ra7 {[%emt 0:02:05]} Qxh4 {[%emt 0:01:06]} 30. Rxb7 {[%emt 0:00:21]} Qxe4 {[%emt 0:00:53]} 31. Bxd2 {[%emt 0:00:37]} Qd3 {[%emt 0:01:14]} 32. Be1 {[%emt 0:00:49]} Rc1 {[%emt 0:00:19]} 33. Bxg3 {[%emt 0:00:35]} Qxd1+ {[%emt 0:00:36]} (33... Nxg3 $142 34. Re7 Rxd1+ 35. Kh2 Nf1+ 36. Kh1 Qxb3 37. Qf2 Qxd5 38. Qf3 Qxf3 39. gxf3 Rc8 40. Re8+ Rxe8 41. h4 Rd2 42. f4 Nxe3 43. h5 Ng4 44. Kg1 Re1#) 34. Kh2 {[%emt 0:00:30]} Qh1# {[%emt 0:00:00] Weighted Error Value: White=1.75/Black=0.57} 0-1

[Event "Turkish Youth Championships 2023"]
[Site "Samsun"]
[Date "2023.05.21"]
[Round "4.4"]
[White "Yildiz, Elif Zeren"]
[Black "Isilak, Enes"]
[Result "0-1"]
[WhiteElo "1722"]
[BlackElo "2181"]
[Annotator "TA"]
[PlyCount "164"]
[EventDate "2023.05.19"]
[EventType "swiss"]
[EventCountry "TUR"]
[TimeControl "5400+30"]

{[%evp 12,164,66,49,110,60,65,34,76,33,8,8,22,12,56,56,68,73,64,55,122,62,150,116,232,157,280,290,219,179,181,181,191,58,47,57,77,22,30,26,17,33,37,20,58,33,53,47,52,22,20,18,9,0,0,0,0,0,0,0,0,0,0,0,0,0,0,0,-8,-73,0,0,0,0,0,0,0,0,0,0,0,0,0,0,0,0,0,0,0,0,0,0,0,0,0,0,0,0,0,0,0,0,0,0,0,0,0,-8,-8,-8,-8,-32,-32,-32,-32,-550,-8,-8,-8,-8,-8,-8,-8,-8,-8,-418,-8,-8,-8,-8,-8,-8,-2,-389,-379,-29968,-29969,-29969,-29970,-29971,-29973,-29973,-29974,-29975,-29976,-29975,-29976,-29976,-29977,-29977,-29978,-29978,-29979,-29984,-29980]} 1. e4 {[%emt 0:01:00]} g6 {[%emt 0:01:00]} 2. d4 {[%emt 0:00:30]} Bg7 {[%emt 0:00:30]} 3. Nc3 {[%emt 0:00:30]} c6 {[%emt 0:00:30]} 4. f4 {[%emt 0:00:30]} d5 {[%emt 0:00:30]} 5. e5 {[%emt 0:00:30]} Nh6 {[%emt 0:00:00]} 6. Be3 {[%emt 0:02:30]} O-O {[%emt 0:02:00]} 7. Nf3 {[%emt 0:01:30]} Bg4 {[%emt 0:00:30] B15: Caro-Kann: 3 Nc3: 3...g6 and 3...dxe4 4 Nxe4 Nf6 5 Nxf6+ exf6.} (7... Qb6 $14) 8. Be2 {[%emt 0:04:30]} (8. h3 $16 Bxf3 9. Qxf3) 8... Nf5 {[%emt 0:01:30]} 9. Bf2 {[%emt 0:05:30] [#]} Bh6 $146 {[%emt 0:01:30] White is slightly better.} ({Predecessor:} 9... f6 10. O-O e6 11. h3 Bxf3 12. Bxf3 fxe5 13. fxe5 c5 14. Ne2 cxd4 15. Nxd4 Nxd4 16. Bxd4 {½-½ Gomez Anadon,D (2305)-Ano Tafalla,S (2105) Andorra op 37th 2019 (3)}) 10. Ng5 {[%emt 0:02:30]} Bxe2 {[%emt 0:00:30]} 11. Qxe2 {[%emt 0:02:30]} Bxg5 $1 {[%emt 0:13:30]} 12. fxg5 {[%emt 0:00:30]} Na6 {[%emt 0:04:30]} 13. O-O-O {[%emt 0:10:30] Strongly threatening h4.} (13. g4 $5 Ng7 $8 14. O-O-O $14) 13... Qd7 {[%emt 0:04:30] Black is weak on the dark squares} 14. h4 {[%emt 0:06:30][%cal Bh2h4,Bh4h5][%mdl 32]} Ng7 {[%emt 0:01:30]} 15. g4 {[%emt 0:04:30]} Nc7 {[%emt 0:16:30]} (15... f5 $1 $14) 16. Be3 {[%emt 0:06:30]} (16. h5 $16) 16... Nce6 {[%emt 0:13:30]} (16... f5 $1 $14) 17. Qf3 {[%emt 0:04:30]} Rfd8 {[%emt 0:07:30]} (17... Rad8 $16) 18. Rdf1 {[%emt 0:06:30]} Qe8 {[%emt 0:00:30]} (18... Rf8 $16 {keeps fighting.} 19. h5 Rad8) 19. h5 $18 {[%emt 0:02:30]} Nf8 {[%emt 0:01:30]} 20. Rf2 {[%emt 0:01:30]} Nge6 {[%emt 0:02:30]} 21. Rhf1 {[%emt 0:00:30]} Rd7 {[%emt 0:02:30]} 22. Qxf7+ {[%emt 0:04:30]} ({White should try} 22. Ne2 $18) 22... Qxf7 $14 {[%emt 0:00:30]} 23. Rxf7 {[%emt 0:00:30]} c5 $1 {[%emt 0:00:30]} 24. Ne2 {[%emt 0:00:30]} (24. dxc5 $2 {is the wrong capture.} d4 25. Bxd4 (25. c6 $2 bxc6 26. Bd2 dxc3 $19) 25... Nxd4 $19) (24. Nxd5 $1 $16 Rxd5 25. c4 (25. Rxe7 cxd4 26. Bd2 Rxe5 $19) 25... Rxd4 26. Bxd4 (26. Rxe7 $2 Rxc4+ 27. Kb1 b6 $19)) 24... cxd4 $11 {[%emt 0:00:30]} 25. Nxd4 {[%emt 0:00:30]} Nxd4 {[%emt 0:00:30]} 26. Bxd4 {[%emt 0:00:30]} Ne6 {[%emt 0:00:30][%csl LRd4,LRg5]} 27. Be3 {[%emt 0:08:30]} a6 {[%emt 0:09:39]} 28. Bd2 {[%emt 0:05:32]} Rf8 {[%emt 0:02:12]} 29. Rxf8+ {[%emt 0:01:14]} Nxf8 $14 {[%emt 0:00:03][%mdl 4096] Endgame KRB-KRN} 30. c3 {[%emt 0:02:11]} Rc7 {[%emt 0:00:43]} 31. Be3 {[%emt 0:01:27]} Rc4 {[%emt 0:00:43]} 32. Rf4 {[%emt 0:02:02]} Rxf4 {[%emt 0:00:21]} 33. Bxf4 $11 {[%emt 0:00:30] KB-KN} Kf7 {[%emt 0:00:30]} 34. Kd2 $1 {[%emt 0:00:30]} Ke6 {[%emt 0:00:30]} 35. Kd3 {[%emt 0:00:48]} Nd7 {[%emt 0:00:58]} 36. Kd4 {[%emt 0:00:11]} Nb8 {[%emt 0:00:00]} 37. Kc5 {[%emt 0:01:42] Hoping for Kb6.} Nd7+ {[%emt 0:00:00]} 38. Kd4 {[%emt 0:00:10]} b6 {[%emt 0:00:00]} 39. hxg6 {[%emt 0:01:12]} hxg6 {[%emt 0:00:01]} 40. a4 {[%emt 0:01:24]} (40. c4 $11 dxc4 41. Bg3) 40... Nb8 {[%emt 0:00:04]} (40... Nc5 $17 41. b4 Nxa4) 41. c4 $1 {[%emt 0:00:30]} Nc6+ {[%emt 0:00:07]} 42. Kc3 {[%emt 0:00:00]} dxc4 {[%emt 0:09:44]} 43. Kxc4 {[%emt 0:00:16]} Nxe5+ {[%emt 0:00:00]} 44. Kd4 $1 {[%emt 0:00:00]} Nc6+ {[%emt 0:00:01]} 45. Ke4 {[%emt 0:00:13]} Kd7 {[%emt 0:00:42]} 46. Be3 {[%emt 0:00:44]} b5 {[%emt 0:01:18]} 47. axb5 {[%emt 0:00:30]} axb5 {[%emt 0:00:01]} 48. Kd5 {[%emt 0:01:14]} Nb4+ {[%emt 0:00:30]} 49. Ke4 {[%emt 0:00:09]} Kd6 {[%emt 0:01:31]} 50. Bf4+ {[%emt 0:00:50]} Kc5 {[%emt 0:01:21] ...Nc6 would be deadly.} 51. b3 {[%emt 0:00:05]} Nc6 {[%emt 0:02:31]} 52. Bd2 {[%emt 0:00:25]} e6 {[%emt 0:00:30]} 53. Be1 {[%emt 0:01:06]} Kd6 {[%emt 0:00:51]} 54. Bc3 {[%emt 0:03:15]} b4 {[%emt 0:01:41]} 55. Be1 {[%emt 0:00:16]} e5 {[%emt 0:00:14]} 56. Bg3 {[%emt 0:01:35]} Ke6 {[%emt 0:00:04]} 57. Be1 {[%emt 0:00:01]} Nd4 {[%emt 0:00:21]} 58. Bxb4 {[%emt 0:00:45]} Nxb3 {[%emt 0:00:04]} 59. Bf8 {[%emt 0:00:18]} Nd2+ {[%emt 0:00:12]} 60. Ke3 {[%emt 0:00:53]} Nc4+ {[%emt 0:00:04]} 61. Ke4 {[%emt 0:00:54]} (61. Kd3 $5 {[%cal Rd3c4]} Kd5 62. Bg7 $11) 61... Nd6+ {[%emt 0:00:04]} 62. Kd3 {[%emt 0:01:37]} Kd5 {[%emt 0:00:05] And now ...e4+ would win.} 63. Be7 $2 {[%emt 0:00:00][%mdl 8192]} (63. Ke2 $15) 63... Nc4 $2 {[%emt 0:00:52]} (63... e4+ $1 $19 64. Ke2 Ke5) 64. Bf6 {[%emt 0:00:13]} e4+ {[%emt 0:00:04]} 65. Ke2 {[%emt 0:00:04]} Ne5 {[%emt 0:00:23]} 66. Ke3 $1 {[%emt 0:02:06]} Nxg4+ {[%emt 0:00:30]} 67. Kf4 {[%emt 0:00:30]} Nf2 {[%emt 0:00:00]} 68. Ke3 $2 {[%emt 0:00:33][%mdl 8192]} (68. Bg7 $11 {and White has nothing to worry.}) 68... Nd3 $2 {[%emt 0:00:09]} ({Better is} 68... Nh3 $19 69. Ke2 Ke6) 69. Bc3 {[%emt 0:00:30]} Ne5 {[%emt 0:00:30]} 70. Ba1 {[%emt 0:00:30]} Nf7 {[%emt 0:00:30]} 71. Bf6 {[%emt 0:00:30]} Nd6 {[%emt 0:00:30]} 72. Bc3 $2 {[%emt 0:00:00][%mdl 8192]} (72. Kf4 $11 {and White is okay.}) 72... Nf5+ $1 $19 {[%emt 0:04:08]} 73. Kf4 $2 {[%emt 0:00:00]} (73. Ke2 $19) 73... e3 {[%emt 0:00:56] Black mates.} 74. Ba5 {[%emt 0:00:00] [#]} Kd4 $1 {[%emt 0:00:19]} ({Stronger than} 74... e2 75. Kf3 $11) 75. Bb6+ {[%emt 0:00:34]} Kd3 {[%emt 0:00:30]} 76. Ke5 {[%emt 0:00:00]} Ke2 {[%emt 0:00:33]} 77. Kf6 {[%emt 0:00:23]} Nh4 {[%emt 0:00:30]} 78. Ba5 {[%emt 0:00:14]} Kf2 {[%emt 0:00:04]} 79. Bb6 {[%emt 0:00:00]} Kf3 {[%emt 0:00:00]} 80. Ba5 {[%emt 0:00:29]} Kg4 {[%emt 0:00:09]} 81. Bb6 {[%emt 0:00:07] [#]} e2 $1 {[%emt 0:00:30]} 82. Bf2 {[%emt 0:00:10]} Kh5 {[%emt 0:00:00] Quite a comeback for Black.   Weighted Error Value: White=0.16 (very precise) /Black=0.16 (very precise)} 0-1